Cogmind - Beta 11.1 @@@ ROGUE MODE // 2022.05.24 @ 18:45:27 Player: DDRAGON Result: Destroyed by S-10 Pest with Light Assault Rifle Performance ------------- Evolutions (0) 0 Regions Visited (2) 400 Robots Destroyed (2) 10 Value Destroyed (81) 81 Prototype IDs (2) 40 Alien Tech Used (0) 0 Bonus (0) 0 TOTAL SCORE: 531 Bonus ------- None Cogmind --------- Core Integrity 0/250 Matter 289/300 Energy 99/100 System Corruption 9% Temperature Cool (0) Movement Core (50) Location -10/Mines Parts ------- > --- POWER (1) -------- (None) > --- PROPULSION (2) --- (None) > --- UTILITY (2) ------ (None) > --- WEAPON (2) ------- (None) > --- INVENTORY (5) ---- Ion Engine Flight Unit Improved Heat Sink Improved Targeting Computer Improved Targeting Computer Peak State ------------ > --- POWER ------------ Light Ion Engine > --- PROPULSION ------- Flight Unit Flight Unit > --- UTILITY ---------- Small Storage Unit Improved Targeting Computer > --- WEAPON ----------- EM Shotgun EM Shotgun > --- INVENTORY -------- Flight Unit Flight Unit Flight Unit Flight Unit Improved Targeting Computer Improved Targeting Computer EM Shotgun EM Shotgun [Rating: 11] Favorites ----------- Power Light Ion Engine Engine Light Ion Engine Power Core Light Nuclear Core Propulsion Flight Unit Leg Aluminum Leg Flight Unit Flight Unit Utility Small Storage Unit Device ECM Suite Storage Small Storage Unit Processor Improved Targeting Computer Weapon Medium Laser Energy Gun Medium Laser Ballistic Gun Light Assault Rifle Build | -11 -10 -10 ------- Run | Scr Mat Min Slots Evolved . | . . . Power . | . . . Propulsion . | . . . Utility . | . . . Weapon . | . . . Parts Attached 24 | 6 9 9 Power 2 | 1 . 1 Engine 1 | 1 . . Core 1 | . . 1 Reactor . | . . . Propulsion 6 | 2 2 2 Treads . | . . . Leg 2 | 2 . . Wheel . | . . . Hover . | . . . Flight 4 | . 2 2 Utility 5 | 1 4 . Device 1 | . 1 . Storage 2 | 1 1 . Processor 2 | . 2 . Hackware . | . . . Protection . | . . . Artifact . | . . . Weapon 11 | 2 3 6 Energy Gun 10 | 2 2 6 Energy Cannon . | . . . Ballistic Gun 1 | . 1 . Ballistic Cannon . | . . . Launcher . | . . . Special Weapon . | . . . Impact Weapon . | . . . Slashing Weapon . | . . . Piercing Weapon . | . . . Special Melee Weapon . | . . . Unidentified Prototypes . | . . . Corrupted Parts 2 | . . 2 System Corruption 6 | . . 6 Parts Lost 8 | . . 8 Power 1 | . . 1 Propulsion 3 | . . 3 Utility . | . . . Weapon 4 | . . 4 Highest Loss Streak 7 | . . 7 To Critical Strikes . | . . . Average Slot Usage (%) 85 | . 96 69 Engine 8 | . 14 . Core 4 | . . 11 Leg 2 | . 4 . Flight 24 | . 23 25 Device 1 | . 2 . Storage 14 | . 15 14 Processor 10 | . 7 14 Energy Gun 13 | . 19 4 Ballistic Gun 5 | . 8 . Naked Turns 1 | . . 1 Heaviest Build 14 | 12 14 13 Greatest Support 20 | 20 20 8 Greatest Overweight (x) 4 | . 4 1 Average Overweight (x) . | . . . Largest Inventory Capacity 8 | 8 8 8 Average Capacity 7 | 6 8 7 Most Carried 8 | 3 8 8 Average Carried 6 | 2 7 6 Final Capacity 8 | 8 8 5 Final Carried 8 | 3 8 5 Class Distribution -------------------- 100% | Mutant Dominant Class ---------------- Mutant | -10/Materials Mutant | -10/Mines Resources | -11 -10 -10 ----------- Run | Scr Mat Min Matter Collected 285 | 188 . 97 Remotely . | . . . Salvage Created 97 | . . 97 Parts 8 | . . 8 Haulers Intercepted . | . . . Recyclers Shooed . | . . . Parts Field Recycled . | . . . Retrieved Matter . | . . . Parts Self-Destructed . | . . . Prevented . | . . . Kills | -11 -10 -10 ------- Run | Scr Mat Min Combat Hostiles Destroyed 2 | . . 2 Melee 1 | . . 1 Guns 1 | . . 1 Classes Destroyed 1 | . . 1 Grunt 2 | . . 2 Best Kill Streak 1 | . . 1 Combat Bots Only 1 | . . 1 Max Kills in Single Turn 1 | . . 1 Gunslinging . | . . . Exploded . | . . . Melee 1 | . . 1 Uniques/NPCs Destroyed . | . . . Combat | -11 -10 -10 -------- Run | Scr Mat Min Damage Taken 686 | . 141 545 Core 251 | . 22 229 Absorbed by Shields . | . . . Core Remaining (%) 100 | 100 . . Volleys Fired 6 | . . 6 Largest 1 | . . 1 Hottest 45 | . . 45 Shots Fired 6 | . . 6 Gun 6 | . . 6 Cannon . | . . . Launcher . | . . . Special . | . . . Kinetic . | . . . Thermal . | . . . Explosive . | . . . Electromagnetic 6 | . . 6 Robot Hit Streak 8 | . . 8 Robot Miss Streak 1 | . . 1 Penetration Max . | . . . Secondary Targets . | . . . Shots Hit Robots 6 | . . 6 Core Hits 9 | . . 9 Critical Kills . | . . . Critical Parts Destroyed . | . . . Critical Strikes . | . . . Melee Attacks . | . . . Impact . | . . . Slashing . | . . . Piercing . | . . . Sneak Attacks . | . . . Combat Hostiles . | . . . Follow-up Attacks . | . . . Damage Inflicted 147 | . 3 144 Guns 88 | . . 88 Cannons . | . . . Explosions . | . . . Melee . | . . . Ramming 59 | . 3 56 Kinetic . | . . . Thermal . | . . . Explosive . | . . . Electromagnetic 88 | . . 88 Impact . | . . . Slashing . | . . . Piercing . | . . . Highest Corruption 9 | . . 9 Average Corruption 6 | . . 6 Corruption Purged . | . . . Corruption Blocked . | . . . Effects 5 | . . 5 Message Errors 2 | . . 2 Matter Fused 1 | . . 1 Energy Discharges 1 | . . 1 Alerts 1 | . . 1 Overload Shots . | . . . Overflow Damage . | . . . Projectiles . | . . . Explosions . | . . . Melee . | . . . Knockbacks . | . . . Impact . | . . . Kinetic . | . . . Secondary . | . . . Self-Inflicted Damage 23 | . 1 22 Shots . | . . . Rammed 34 | . 1 33 Targets Rammed 34 | . 1 33 Kicked . | . . . Crushed . | . . . Highest Temperature 8 | . . 8 Average Temperature 6 | . . 6 Received Heat Transfer 318 | . 78 240 Siege Activations . | . . . Robots Corrupted . | . . . Combat Hostiles . | . . . Parts Fried . | . . . Impact Corruptions . | . . . Robots Melted . | . . . Combat Hostiles . | . . . Parts Melted . | . . . Heat Transferred . | . . . Parts Sabotaged . | . . . Parts Stolen . | . . . Parts Stripped . | . . . Power Chain Reactions . | . . . Missiles Intercepted . | . . . Alert | -11 -10 -10 ------- Run | Scr Mat Min Peak Influence 30 | . 5 30 Initial . | . . . Average 10 | . 2 24 Maximum Alert Level . | . . . Low Security (%) 100 | 100 100 100 Level 1 . | . . . Level 2 . | . . . Level 3 . | . . . Level 4 . | . . . Level 5 . | . . . High Security . | . . . Max Security . | . . . Squads Dispatched 1 | . 1 . Investigation 1 | . 1 . Extermination . | . . . Reinforcement . | . . . Assault . | . . . Garrison . | . . . Intercept . | . . . Searches Triggered . | . . . Construction Impeded . | . . . Haulers Reinforced . | . . . Active Scanning Responses . | . . . Cargo Convoy Interrupts . | . . . Stealth | -11 -10 -10 --------- Run | Scr Mat Min Distress Signals 1 | . 1 . Communications Jammed . | . . . Distress Signals . | . . . Times Spotted 9 | . 4 5 Peak Tracking Total 4 | . 4 3 Tactical Retreats . | . . . Traps | -11 -10 -10 ------- Run | Scr Mat Min Traps Triggered . | . . . Indirectly . | . . . Trap Hack Attempts . | . . . Triggered . | . . . Disarmed . | . . . Reprogrammed . | . . . Reused . | . . . Traps Extracted . | . . . Installed . | . . . Triggered . | . . . Machines | -11 -10 -10 ---------- Run | Scr Mat Min Machines Disabled . | . . . Max in Single Turn . | . . . Machines Sabotaged . | . . . Garrisons Compromised . | . . . Overloaded Fab Kills . | . . . Hacking | -11 -10 -10 --------- Run | Scr Mat Min Machines Accessed 2 | . 2 . Terminals 1 | . 1 . Fabricators . | . . . Repair Stations . | . . . Recycling Units 1 | . 1 . Scanalyzers . | . . . Garrison Access . | . . . Total Hacks 4 | . 4 . Successful 2 | . 2 . Failed 2 | . 2 . Catastrophic . | . . . Database Lockouts . | . . . Manual . | . . . Terminals 1 | . 1 . Fabricators . | . . . Repair Stations . | . . . Recycling Units 3 | . 3 . Scanalyzers . | . . . Garrison Access . | . . . Terminal Hacks 1 | . 1 . Prototype ID Bank 1 | . 1 . Fabricator Hacks . | . . . Repair Station Hacks . | . . . Recycling Unit Hacks 1 | . 1 . Report Inventory 1 | . 1 . Scanalyzer . | . . . Garrison Access Hacks . | . . . Unauthorized Hacks . | . . . Terminals . | . . . Fabricators . | . . . Repair Stations . | . . . Recycling Units . | . . . Scanalyzers . | . . . Garrison Access . | . . . Data Cores Recovered . | . . . Used . | . . . Hacking Detections 1 | . 1 . Full Trace Events 1 | . 1 . Feedback Events . | . . . Feedback Blocked . | . . . Robot Schematics Acquired . | . . . Robots Built . | . . . Authchips . | . . . Time . | . . . Total Robot Build Rating . | . . . Part Schematics Acquired . | . . . Parts Built . | . . . Authchips . | . . . Time . | . . . Total Part Build Rating . | . . . Parts Repaired . | . . . Time . | . . . Parts Recycled . | . . . Recycled Matter . | . . . Retrieved Matter . | . . . Retrieved Components . | . . . Parts Scanalyzed . | . . . Part Schematics Acquired . | . . . Parts Damaged . | . . . Bothacking | -11 -10 -10 ------------ Run | Scr Mat Min Used RIF Installer . | . . . Robots Hacked . | . . . Non-combat . | . . . Combat . | . . . Robot Hacks Applied . | . . . Relay Couplers Released . | . . . Fabnet Peak Effective % . | . . . Robots Rewired . | . . . Allies Hacked . | . . . Hacks Repelled . | . . . Allies | -11 -10 -10 -------- Run | Scr Mat Min Total Allies . | . . . Largest Group . | . . . Highest-Rated Group . | . . . Highest-Rated Ally . | . . . Total Orders . | . . . Ally Attacks . | . . . Total Damage . | . . . Kills . | . . . Allies Corrupted . | . . . Allies Melted . | . . . Intel | -11 -10 -10 ------- Run | Scr Mat Min Robot Analysis Total . | . . . Derelict Logs Recovered . | . . . Drone Launches . | . . . Drone Recoveries . | . . . Exploration | -11 -10 -10 ------------- Run | Scr Mat Min Turns Passed 783 | 69 426 288 Spaces Moved 547 | 49 321 177 Core 5 | 1 2 2 Treads . | . . . Legs 97 | 48 49 . Wheels . | . . . Hover . | . . . Flight 445 | . 270 175 Fastest Speed 37 | 50 117 37 Average Speed 117 | 118 118 116 Slowest Speed 280 | 120 280 117 Overloaded Moves . | . . . Propulsion Burnouts . | . . . Robots Hopped . | . . . Cave-ins Triggered . | . . . Exploration Rate (%) 25 | 4 43 30 Regions Visited 2 Branch Regions 1 Pre-discovered Areas . | . . . Known Exits Taken 1 | . 1 . Unknown Exits Taken 1 | 1 . . Scrap Searched . | . . . Spaces Dug . | . . . Terrain Destroyed . | . . . Melee . | . . . Projectile . | . . . AOE . | . . . Terrain Rammed . | . . . Walls Destroyed . | . . . Machines Disabled . | . . . Actions | -11 -10 -10 --------- Run | Scr Mat Min Total 675 | 57 370 248 Wait 28 | . 12 16 Move 545 | 48 320 177 Hop . | . . . Pick Up 17 | 3 12 2 Fast Attach 16 | 6 6 4 Attach 7 | . 2 5 Detach 7 | . 5 2 Swap 1 | . 1 . Drop 14 | . 11 3 Fire 6 | . . 6 Melee . | . . . Ram 34 | . 1 33 Kick . | . . . Crush . | . . . Escape Stasis . | . . . Rewire . | . . . Trap . | . . . Miscellaneous . | . . . Route ------- -11/Scrapyard -10/Materials -10/Mines History --------- Turn | Location | Event 20 | -11/Scrapyard | Discovered new exit (range 16) 70 | -11/Scrapyard | Entered Materials 310 | -10/Materials | Discovered new exit (range 10) 317 | -10/Materials | Build established: Mutant 319 | -10/Materials | Identified exit to Mines 496 | -10/Materials | Entered Mines 539 | -10/Mines | Core integrity fell below 50% 573 | -10/Mines | Lost 7 parts (1p2n4w) 776 | -10/Mines | Core integrity fell below 20% 783 | -10/Mines | Released all parts (4) 784 | -10/Mines | Destroyed by S-10 Pest with Light Assault Rifle Last Messages --------------- 00615_ K-01 Serf cleans the Laser Drill. 00622_ System corrupted: IFF burst signal emitted. 00646_ II< CS,CAAK4U2MQ>M1IZVF 00647_ Dropped Particle Gun. 00677_ K-01 Serf collects debris. 00684_ System corrupted: Energy discharge (-44). 00685_ K-01 Serf collects debris. 00754_ WG,7Z4NNBSOZV&CT &%MCWB8 00769_ System corrupted: Matter fused (-8). 00774_ Slammed into S-10 Pest. 00779_ Flight Unit destroyed. 00779_ System corrupted by crushing effect (+2). 00781_ Slammed into S-10 Pest. 00781_ Flight Unit broken. 00781_ Destabilizing: Short circuit. 00783_ Released Imp. Targeting Computer. 00783_ Released Sml. Storage Unit. 00783_ Released Broken Flight Unit. 00783_ Released Lgt. Nuclear Core. 00783_ Slammed into S-10 Pest. Map ----- +----------------------------------------------------+ | ?????????????????????????????????????????????????? | | ?????????????????????????????????????????????????? | | ?????????????????????????????????????????????????? | | ?????????????????????????????????????????????????? | | ?????###?????????????????????????????????????????? | | ?????# ????????????????????????????????????????? | | ?????? ???????????????????????????????????????? | | ???????? ?????????????????????????????????????? | | ?????????? ????????????????????????????????????? | | ???????????? ####???????????????????????????????? | | ?????????????? #???????????????????????????????? | | ???????????????# #???????????????????????????????? | | ???????????????# #???????????????????????????????? | | ???????????????# #???????????????????????????????? | | ?#############?# #???????????????????????????????? | | ?# #?# #???????????????????????????????? | | ?# #?# #???????????????????????????????? | | ?# """ """ = #?# #???????????????????????????????? | | ?# """ """= #?# #???????????????????????????????? | | ?# """ "" ### ###########?????????????????????? | | ?# #?????????????????????? | | ?# ==# ########### #?????????????????????? | | ?############# #?????????#=#?????????????????????? | | ?????????????# #?????????#!#?????????????????????? | | ??####???????# #??????####=######????????????????? | | ?## ######### #???#### @s #????????????????? | | ?# #??## #????????????????? | | ## ####### ##?## ##### #????????????????? | | # ##?????# #### #??## ##???????????????? | | # #?????## ##??# #???????????????? | | # ####### #???# #???????????????? | | ## #???# ##???????????????? | | ?## ##???# #????????????????? | | ??## ##### ##????# ##???????????????? | | ??## ##?##### ##?????# ###?????????????? | | ?## #?????## ##??????## ##????????????? | | ?# #?????## #????????## #????????????? | | ?# #????## #?????????# #????????????? | | ?# ##??## #?????????# ##????????????? | | ?## [ #??# ##????????## ##?????????????? | | ??# #??# #?????????####??????????????? | | ?## ##??# #??????????????????????????? | | ?# #???# #??????????????????????????? | | ?# #???## #??????????????????????????? | | ?# #????# #??????????????????????????? | | ?# ##???? #?????????????????????????? | | ?# ###????? #????????????????????????? | | ?## ##?????? ## #????????????????????????? | | ??####??????? ##?# #????????????????????????? | | ???????????? #????# #????????????????????????? | +----------------------------------------------------+ Best States ------------- Heat Dissipation 25 Energy Generation 14 Energy Capacity 160 Matter Stores 282 Matter Capacity 450 Sight Range 16 Terrain Scan Density 10 ECM Strength 1 Evasion (%) 55 Targeting Accuracy 6 Item Schematics ----------------- None Robot Schematics ------------------ None Fabricated ------------ Nothing Alien Tech Used ----------------- None Achievements -------------- Fist Fight Challenges ------------ None Game ------ Seed RiotThunderLoader Manual? 0 Play Time 00:13:42 Cumulative 18.7 hours Start 2022.05.24 @ 18:35:21 End 2022.05.24 @ 18:45:27 Sessions 1 Manual Loads 0 Difficulty Rogue Special Mode None Game No. 28 Rogue 28 Adventurer 0 Explorer 0 Win Type - Total 0 Types 0/0/0/0/0/0/0/0/0 Lore% 14 Gallery% 33 Achievement% 22 Wizard Run 0 Options --------- ASCII 0 Keyboard 1 Movement Numpad Keybinds 0 Fullscreen 1 Font 24/Proggy Map View 76x50 Tactical HUD 1 Map Filters NONE Filters NONE Steam 1 RUN: c8ccd679-9405-4a77-be9b-a9a4c5d4f752